bitfinex/quotes_ETHUSD_20250815
["timestamp","ask_amount","ask_price","bid_price","bid_amount"]
[1755236617250,6.48603969,4613.1,4612.6,0.001]
[1755236619621,3.19303969,4613.1,4612.6,0.001]
[1755236619823,6.48703969,4613.1,4612.6,0.001]
[1755236621054,6.57390169,4613.1,4612.6,0.001]
[1755236623324,5.65660169,4613.1,4612.6,0.001]
[1755236623721,6.12910169,4613.1,4612.6,0.001]
[1755236625529,6.57390169,4613.1,4612.6,0.001]
[1755236627141,6.12910169,4613.1,4612.6,0.001]
[1755236627677,5.65660169,4613.1,4612.6,0.001]
[1755236627878,0.108,4613.6,4613.0,0.5616]
[1755236628031,2.16760805,4613.4,4613.0,0.5616]
[1755236628336,0.086847,4613.3,4613.1,0.4526]
[1755236628535,0.086847,4613.3,4613.0,0.109]
[1755236628536,3.294,4613.2,4613.0,0.109]
[1755236629262,3.294,4613.2,4613.0,0.5616]
[1755236629578,3.294,4613.2,4613.1,0.4526]
[1755236630184,3.293,4613.2,4613.1,0.4526]
[1755236631564,0.086847,4613.3,4613.1,0.4526]
[1755236631763,3.293,4613.2,4613.1,0.4526]
[1755236632679,3.293,4613.2,4613.1,0.72554771]
[1755236636474,3.293,4613.2,4613.0,0.109]
[1755236636777,0.4533,4613.1,4613.0,0.109]
[1755236639989,3.293,4613.2,4613.0,0.109]
[1755236640651,3.293,4613.1,4613.0,0.109]
[1755236640847,3.293,4613.1,4613.0,0.5413]
[1755236641052,3.402,4613.1,4613.0,0.8559214]
[1755236641279,3.402,4613.1,4613.0,0.5413]
[1755236642059,0.109,4613.1,4613.0,0.5413]
[1755236642300,3.402,4613.1,4613.0,0.5413]
[1755236643261,3.402,4613.1,4613.0,0.8122227]
[1755236645709,3.402,4613.1,4613.0,0.3799227]
[1755236646031,3.402,4613.1,4613.0,0.8122227]
[1755236646365,3.402,4613.1,4613.0,0.3799227]
[1755236646966,4.3271,4613.1,4613.0,0.109]
[1755236647400,3.402,4613.1,4613.0,0.109]
[1755236647602,3.402,4613.1,4613.0,0.5413]
[1755236649071,0.109,4613.1,4613.0,0.5413]
[1755236649295,3.402,4613.1,4613.0,0.5413]
[1755236651205,0.109,4613.1,4613.0,0.5413]
[1755236651393,3.402,4613.1,4613.0,0.5413]
[1755236651701,0.109,4613.1,4613.0,0.5413]
[1755236651902,3.402,4613.1,4613.0,0.81221741]
[1755236652614,0.109,4613.1,4613.0,2.99620631]
[1755236652824,0.002,4613.6,4613.5,2.16755175]
[1755236653025,0.002,4613.6,4613.5,2.2917481]
[1755236653195,0.002,4613.6,4613.5,2.7240481]
[1755236653506,0.002,4613.6,4613.5,2.98025656]
[1755236656681,0.002,4613.6,4613.5,0.108]
[1755236656905,0.4553,4613.6,4613.1,4.25]
[1755236657205,0.002,4613.6,4613.4,2.16755566]
[1755236657394,0.002,4613.6,4613.3,2.16763859]
[1755236657702,0.002,4613.6,4613.1,6.41772158]
[1755236657703,0.002,4613.6,4613.2,0.4323]
[1755236658021,0.002,4613.6,4613.2,3.26895499]
[1755236658176,0.002,4613.6,4613.3,0.4323]
[1755236658576,0.002,4613.6,4613.2,0.6689639]
[1755236658577,0.002,4613.6,4613.1,4.25]
[1755236658800,0.4533,4613.5,4613.1,4.25]
[1755236659106,0.4533,4613.4,4613.1,4.91897463]
[1755236659274,0.4533,4613.4,4613.1,4.25]
[1755236659705,0.002,4613.6,4613.1,4.25]
[1755236660004,0.4553,4613.6,4613.1,4.25]
[1755236660179,0.9251,4613.5,4613.1,4.25]
[1755236660380,0.4533,4613.4,4613.1,4.25]
[1755236660812,3.292,4613.3,4613.1,4.25]
[1755236662311,3.292,4613.3,4613.0,0.001]
[1755236663208,0.4968,4613.2,4613.0,0.001]
[1755236663513,0.9484,4613.2,4613.0,0.001]
[1755236663709,0.4968,4613.1,4613.0,0.001]
[1755236666813,0.4968,4613.1,4613.0,0.109]
[1755236667391,1.14814,4613.1,4613.0,0.109]
[1755236667593,0.65134,4613.1,4613.0,0.109]
[1755236670420,3.292,4613.3,4613.0,0.109]
[1755236670914,0.4968,4613.2,4613.0,0.109]
[1755236671713,3.292,4613.1,4613.0,0.109]
[1755236672920,3.7888,4613.1,4613.0,0.109]
[1755236673293,6.40813969,4613.1,4613.0,0.109]
[1755236673499,4.2404,4613.1,4613.0,0.109]
[1755236673802,3.7888,4613.1,4613.0,0.109]
[1755236674007,6.40813969,4613.1,4613.0,0.109]
[1755236674335,6.40813969,4613.1,4613.0,0.001]
[1755236674485,6.51613969,4613.1,4613.0,0.001]
[1755236674920,6.60299669,4613.1,4613.0,0.001]
[1755236688066,3.31099669,4613.1,4613.0,0.001]
[1755236688237,6.60299669,4613.1,4613.0,0.001]
[1755236691237,13.48757358,4613.1,4613.0,0.001]
[1755236693136,13.48757358,4613.1,4612.6,0.001]
[1755236693341,0.108,4612.7,4612.6,0.001]
[1755236693637,2.27592767,4612.7,4612.6,0.001]
[1755236693813,5.65479967,4612.7,4612.6,0.001]
[1755236695425,2.36279967,4612.7,4612.6,0.001]
[1755236695644,6.13269967,4612.7,4612.6,0.001]
[1755236696511,5.65479967,4612.7,4612.6,0.001]
[1755236697342,6.13269967,4612.7,4612.6,0.001]
[1755236697544,6.58169967,4612.7,4612.6,0.001]
[1755236697747,6.13269967,4612.7,4612.6,0.001]
[1755236700843,5.82004711,4612.7,4612.6,0.001]
[1755236701346,0.194872,4612.7,4612.6,0.001]
[1755236701550,3.292,4612.7,4612.6,0.4465]
[1755236701850,3.292,4612.7,4612.6,0.001]
[1755236702562,5.45992767,4612.7,4612.6,0.001]
[1755236702963,3.292,4612.7,4612.6,0.001]
[1755236703256,3.292,4612.7,4612.6,0.4465]
[1755236703843,0.194861,4612.9,4612.6,0.4465]
[1755236704037,3.292,4612.8,4612.7,0.4455]
[1755236704636,14.28149698,4613.9,4612.7,0.4455]
[1755236704637,2.16764757,4613.3,4612.7,0.4455]
[1755236704945,3.292,4613.2,4612.8,0.437]
[1755236705130,0.5535,4613.5,4613.0,2.16775459]
[1755236705335,3.292,4613.4,4613.1,0.4455]
[1755236705538,3.291,4613.3,4613.2,0.437]
[1755236705749,3.291,4613.3,4613.2,0.9905]
[1755236706346,3.291,4613.3,4613.2,3.1581927]
[1755236706771,3.291,4613.3,4613.2,0.9905]
[1755236707138,3.291,4613.3,4613.2,3.1581927]
[1755236707464,3.291,4613.3,4613.2,3.69079432]
[1755236708265,3.291,4613.3,4613.2,1.08610162]
[1755236708464,3.291,4613.3,4613.2,0.5535]
[1755236709137,0.002,4613.6,4613.2,0.9905]
[1755236709339,0.002,4613.6,4613.3,0.4455]
[1755236709540,0.002,4613.6,4613.5,2.27555175]
[1755236709754,0.002,4613.6,4613.5,2.80812026]
[1755236710061,0.002,4613.6,4613.5,3.25362026]
[1755236717889,0.002,4613.6,4613.5,3.69062026]
[1755236721973,0.002,4613.6,4613.5,3.70681661]
[1755236727778,0.002,4613.6,4613.5,3.69062026]
[1755236727981,0.002,4613.6,4613.5,3.25362026]
[1755236729482,0.002,4613.6,4613.5,3.26981661]
[1755236730959,0.002,4613.6,4613.5,3.25362026]
[1755236731761,0.002,4613.6,4613.5,3.26981661]
[1755236731967,0.002,4613.6,4613.5,6.54262026]
[1755236732783,0.002,4613.6,4613.5,6.09712026]
[1755236733105,0.9464,4613.6,4613.5,2.27555175]
[1755236736569,0.4742,4613.6,4613.5,2.27555175]
[1755236736770,0.002,4613.6,4613.5,2.27555175]
[1755236737568,0.002,4613.6,4613.5,2.7331481]
[1755236737775,0.002,4613.6,4613.5,3.15395175]
[1755236737973,0.002,4613.6,4613.5,3.57801064]
[1755236741101,0.002,4613.6,4613.5,6.42561064]
[1755236741472,0.002,4613.6,4613.5,6.86701064]
[1755236742302,0.002,4613.6,4613.5,11.11701064]
[1755236743600,1e-08,4613.6,4613.5,14.44601064]
[1755236743778,1e-08,4613.6,4613.5,14.55401064]
[1755236743973,1e-08,4613.6,4613.5,14.11701064]
[1755236744196,1e-08,4613.6,4613.5,14.55401064]
[1755236745297,1e-08,4613.6,4613.5,14.11701064]
[1755236745467,1e-08,4613.6,4613.5,13.67561064]
[1755236745667,1e-08,4613.6,4613.5,7.38661064]
[1755236745870,0.94440001,4613.6,4613.5,7.38661064]
[1755236746117,0.94440001,4613.6,4613.5,10.67461064]
[1755236747422,0.94440001,4613.6,4613.5,7.38661064]
[1755236747633,0.94440001,4613.6,4613.5,9.81355175]
[1755236747976,0.94440001,4613.6,4613.5,5.56355175]
[1755236748405,0.94440001,4613.6,4613.5,2.27555175]
[1755236748589,0.94440001,4613.6,4613.5,5.56355175]
[1755236749181,1e-08,4613.6,4613.5,5.56355175]
[1755236749511,1e-08,4613.6,4613.5,6.76167064]
[1755236749878,1e-08,4613.6,4613.5,7.20307064]
[1755236750479,1e-08,4613.6,4613.5,6.76167064]
[1755236750691,1e-08,4613.6,4613.5,7.20307064]
[1755236750881,1e-08,4613.6,4613.5,11.45307064]
[1755236751691,1e-08,4613.6,4613.5,14.78207064]
[1755236751893,1e-08,4613.6,4613.5,14.89007064]
[1755236752209,1e-08,4613.6,4613.5,14.45307064]
[1755236753208,1e-08,4614.0,4613.9,2.16736383]
[1755236753411,0.002,4614.7,4614.1,2.16726989]
[1755236753578,0.002,4614.7,4614.5,2.16708202]
[1755236753777,0.002,4614.7,4614.5,5.57926662]
[1755236753981,0.002,4614.7,4614.5,6.62403868]
[1755236754401,0.002,4614.7,4614.5,6.16673868]
[1755236754728,0.4818,4614.6,4614.5,6.16673868]
[1755236755232,0.002,4614.6,4614.5,6.16673868]
[1755236755686,0.002,4614.6,4614.5,6.62403868]
[1755236755885,0.002,4614.6,4614.5,6.16673868]
[1755236760527,0.002,4614.6,4614.5,6.62403868]
[1755236765127,0.002,4614.6,4614.5,10.87403868]
[1755236766127,0.002,4614.7,4614.6,2.16703506]
[1755236766309,0.002,4614.7,4614.6,3.48732585]
[1755236767099,0.002,4614.7,4614.6,3.94462585]
[1755236767628,0.002,4614.8,4614.7,2.1669881]
[1755236767795,0.002,4614.8,4614.7,5.4539881]
[1755236767998,0.002,4614.8,4614.7,8.11575214]
[1755236768199,0.002,4614.8,4614.7,7.65845214]
[1755236768410,0.002,4614.8,4614.7,8.11575214]
[1755236768835,0.002,4614.8,4614.7,12.36575214]
[1755236769339,0.002,4615.4,4615.3,2.16670638]
[1755236769500,0.002,4615.4,4615.3,11.50728351]
[1755236769927,0.002,4615.4,4615.3,11.96458351]
[1755236770129,0.002,4615.4,4615.3,12.07258351]
[1755236770516,1e-08,4615.5,4615.4,2.16665944]
[1755236770721,1e-08,4615.5,4615.4,4.82842348]
[1755236772211,1e-08,4615.5,4615.4,9.07842348]
[1755236773315,1e-08,4615.6,4615.5,2.1666125]
[1755236773515,1e-08,4615.6,4615.5,8.4536125]
[1755236773749,1e-08,4615.6,4615.5,10.38454851]
[1755236777052,1e-08,4615.6,4615.5,9.92624851]
[1755236778422,1e-08,4615.6,4615.5,14.17624851]
[1755236782660,1e-08,4615.6,4615.5,14.64444851]
[1755236784250,1e-08,4615.6,4615.5,14.17624851]
[1755236790577,1e-08,4615.6,4615.5,11.17624851]
[1755236790578,0.92490001,4615.6,4615.5,11.17624851]
[1755236790779,0.92490001,4615.6,4615.5,2.1666125]
[1755236790977,0.92490001,4615.6,4615.3,3.393]
[1755236791164,1e-08,4615.6,4615.4,2.16665123]
[1755236791481,0.9249,4615.5,4615.4,2.16665123]
[1755236791872,0.9249,4615.5,4615.4,5.45265123]
[1755236795155,0.9249,4615.5,4615.4,3.285]
[1755236795390,0.9249,4615.5,4615.4,5.45165944]
[1755236805990,0.4711,4615.5,4615.4,5.45165944]
[1755236807294,0.9249,4615.5,4615.4,5.45165944]
[1755236809199,0.4711,4615.5,4615.4,5.45165944]
[1755236811383,1e-08,4615.6,4615.5,2.1666125]
[1755236811705,1e-08,4615.6,4615.5,2.65098537]
[1755236812007,1e-08,4615.6,4615.5,2.63148537]
[1755236813423,0.94380001,4615.6,4615.5,2.1666125]
[1755236813701,0.94380001,4615.6,4615.5,5.4516125]
[1755236813906,0.94380001,4615.6,4615.5,2.1666125]
[1755236814106,0.94380001,4615.6,4615.5,5.4516125]
[1755236814614,0.94380001,4615.6,4615.3,3.394]
[1755236814913,0.9438,4615.5,4615.3,0.109]
[1755236815280,1e-08,4615.6,4615.3,0.109]
[1755236815281,0.9438,4615.4,4615.3,0.109]
[1755236815478,0.9438,4615.4,4615.3,2.27570638]
[1755236815673,0.4931,4615.4,4615.3,0.109]
[1755236815875,0.4931,4615.4,4615.3,2.27570638]
[1755236816075,1e-08,4615.6,4615.5,2.1666125]
[1755236816511,1e-08,4615.6,4615.4,2.16665056]
[1755236816512,0.94380001,4615.6,4615.4,2.16665056]
[1755236816697,1e-08,4615.6,4615.4,2.16665056]
[1755236816900,0.9438,4615.5,4615.4,2.16665056]
[1755236817096,0.4931,4615.5,4615.4,2.16665056]
[1755236817299,0.9438,4615.5,4615.3,0.109]
[1755236817677,1e-08,4615.6,4615.3,0.109]
[1755236817882,0.9438,4615.4,4615.3,0.109]
[1755236820917,0.9438,4615.4,4615.3,0.001]
[1755236821435,0.4931,4615.4,4615.3,0.001]
[1755236822132,0.9438,4615.4,4615.3,0.001]
[1755236823623,0.4931,4615.4,4615.3,0.001]
[1755236824038,1e-08,4615.6,4615.3,0.109]
[1755236824734,0.4931,4615.5,4615.3,0.109]
[1755236824894,1e-08,4615.6,4615.3,0.109]
[1755236825096,0.4931,4615.4,4615.3,0.109]
[1755236825297,0.4931,4615.4,4615.3,2.27570638]
[1755236826136,0.4931,4615.4,4615.3,0.109]
[1755236826632,0.4931,4615.4,4615.3,2.27570638]
[1755236827640,0.4931,4615.4,4615.3,0.109]
[1755236830235,0.9438,4615.4,4615.3,0.001]
[1755236830998,0.4931,4615.4,4615.3,0.001]
[1755236836220,1e-08,4615.6,4615.3,0.001]
[1755236836735,0.4931,4615.5,4615.3,0.001]
[1755236838338,0.9438,4615.4,4615.3,0.001]
[1755236838929,3.11045944,4615.4,4615.3,0.001]
[1755236839273,0.97088324,4615.4,4615.3,0.001]
[1755236839753,3.13754268,4615.4,4615.3,0.001]
[1755236839955,3.11045944,4615.4,4615.3,0.001]
[1755236840255,3.21845944,4615.4,4615.3,0.001]
[1755236840456,3.32645944,4615.4,4615.3,0.001]
[1755236840878,6.61145944,4615.4,4615.3,0.001]
[1755236843446,13.49667449,4615.4,4615.3,0.001]
[1755236846466,13.03259644,4615.4,4615.3,0.001]
[1755236846639,13.4962464,4615.4,4615.3,0.001]
[1755236847071,13.03259644,4615.4,4615.3,0.001]
[1755236850270,9.29689644,4615.4,4615.3,0.001]
[1755236850476,12.47389644,4615.4,4615.3,0.001]
[1755236850651,12.94249644,4615.4,4615.3,0.001]
[1755236851261,9.65749644,4615.4,4615.3,0.001]
[1755236851575,12.94249644,4615.4,4615.3,0.001]
[1755236852270,12.47389644,4615.4,4615.3,0.001]
[1755236852856,11.98079644,4615.4,4615.3,0.001]
[1755236853160,5.55965944,4615.4,4615.3,0.001]
[1755236853545,6.03475944,4615.4,4615.3,0.001]
[1755236856471,6.50335944,4615.4,4615.3,0.001]
[1755236857481,13.38765501,4615.4,4615.3,0.001]
[1755236857973,13.68927974,4615.4,4615.3,0.001]
[1755236858383,7.26814274,4615.4,4615.3,0.001]
[1755236858579,13.68927974,4615.4,4615.3,0.001]
[1755236858979,13.38765501,4615.4,4615.3,0.001]
[1755236860554,12.91905501,4615.4,4615.3,0.001]
[1755236860776,13.38765501,4615.4,4615.3,0.001]
[1755236863986,13.68927974,4615.4,4615.3,0.001]
[1755236864189,13.77611374,4615.4,4615.3,0.001]
[1755236864351,13.47448901,4615.4,4615.3,0.001]
[1755236864861,7.05335201,4615.4,4615.3,0.001]
[1755236865067,13.47448901,4615.4,4615.3,0.001]
[1755236867775,2.16703506,4614.6,4614.5,0.001]
[1755236868092,25.60254736,4614.6,4614.5,0.001]
[1755236868403,26.982318,4614.6,4614.5,0.001]
[1755236868587,27.090318,4614.6,4614.5,0.001]
[1755236869373,26.621718,4614.6,4614.5,0.001]
[1755236869575,27.090318,4614.6,4614.5,0.001]
[1755236870800,27.202745,4614.6,4614.5,0.001]
[1755236870960,26.734145,4614.6,4614.5,0.001]
[1755236871801,27.185845,4614.6,4614.5,0.001]
[1755236875171,26.734145,4614.6,4614.5,0.001]
[1755236876301,27.185845,4614.6,4614.5,0.001]
[1755236877311,12.44433063,4614.6,4614.5,0.001]
[1755236877468,11.98117206,4614.6,4614.5,0.001]
[1755236877669,11.98117206,4614.6,4614.5,0.4397]
[1755236877972,12.44423481,4614.6,4614.5,0.4397]
[1755236878617,12.6077542,4614.6,4614.5,0.4397]
[1755236878906,9.3227542,4614.6,4614.5,0.4397]
[1755236879269,12.6077542,4614.6,4614.5,0.4397]
[1755236880009,12.6077542,4614.6,4614.5,0.001]
[1755236883205,13.0676542,4614.6,4614.5,0.001]
[1755236884805,12.6077542,4614.6,4614.5,0.001]
[1755236885108,13.0676542,4614.6,4614.5,0.001]
[1755236885412,13.0676542,4614.6,4614.5,1e-08]
[1755236885567,13.5193542,4614.6,4614.5,1e-08]
[1755236885768,13.6062062,4614.6,4614.5,1e-08]
[1755236885967,2.16712898,4614.4,4614.3,1e-08]
[1755236886197,11.90035509,4614.4,4614.3,1e-08]
[1755236886386,5.91519173,4614.4,4614.3,1e-08]
[1755236886690,6.82679173,4614.4,4614.3,1e-08]
[1755236887007,13.24792873,4614.4,4614.3,1e-08]
[1755236887391,12.79622873,4614.4,4614.3,1e-08]
[1755236887705,12.33632873,4614.4,4614.3,1e-08]
[1755236890389,12.33632873,4614.4,4614.3,0.43870001]
[1755236890873,12.33632873,4614.4,4614.3,1e-08]
[1755236891900,12.79622873,4614.4,4614.3,1e-08]
[1755236892076,12.33632873,4614.4,4614.3,1e-08]
[1755236893276,12.79622873,4614.4,4614.3,1e-08]
[1755236894197,13.24792873,4614.4,4614.3,1e-08]
[1755236894399,12.79622873,4614.4,4614.3,1e-08]
[1755236895106,13.24792873,4614.4,4614.3,1e-08]
[1755236896411,12.33632873,4614.4,4614.3,1e-08]
[1755236896607,9.05132873,4614.4,4614.3,1e-08]
[1755236896807,12.33632873,4614.4,4614.3,0.43870001]
[1755236898115,9.05132873,4614.4,4614.3,0.43870001]
[1755236898276,5.45212898,4614.4,4614.3,0.87570001]
[1755236899591,5.45212898,4614.4,4614.3,0.43870001]
[1755236900200,2.16712898,4614.4,4614.3,0.43870001]
[1755236900404,5.45212898,4614.4,4614.3,0.43870001]
[1755236901181,5.45212898,4614.4,4614.3,0.87570001]
[1755236901426,3.285,4614.4,4614.3,0.87570001]
[1755236901624,0.26925347,4614.6,4614.3,0.87570001]
[1755236901926,3.285,4614.5,4614.4,0.8851]
[1755236902222,3.285,4614.5,4614.4,0.4481]
[1755236902405,0.002,4614.8,4614.4,0.9931]
[1755236902595,3.285,4614.7,4614.5,0.437]
[1755236902797,3.285,4614.7,4614.6,0.8851]
[1755236903131,3.285,4614.7,4614.6,0.4481]
[1755236903440,2.16705319,4614.6,4614.3,1e-08]
[1755236903588,3.31208852,4614.5,4614.3,0.44810001]
[1755236903790,3.285,4614.4,4614.3,1e-08]
[1755236904510,3.285,4614.4,4614.3,0.44810001]
[1755236904751,5.45212898,4614.4,4614.3,0.44810001]
[1755236905083,5.56012898,4614.4,4614.3,0.44810001]
[1755236905488,3.393,4614.4,4614.3,0.44810001]
[1755236906034,5.56012898,4614.4,4614.3,0.44810001]
[1755236906328,5.56012898,4614.4,4614.3,1e-08]
[1755236906534,3.393,4614.4,4614.3,0.44810001]
[1755236907391,5.56012898,4614.4,4614.3,0.44810001]
[1755236907705,5.56012898,4614.4,4614.3,1e-08]
[1755236908230,12.47016598,4614.4,4614.3,1e-08]
[1755236908394,12.93986598,4614.4,4614.3,1e-08]
[1755236908854,13.24149071,4614.4,4614.3,1e-08]
[1755236909055,15.86951029,4614.2,4614.1,1e-08]
[1755236909223,26.03733996,4614.2,4614.1,1e-08]
[1755236909731,26.99593996,4614.2,4614.1,1e-08]
[1755236910543,2.16726989,4614.1,4613.5,0.001]
[1755236910704,2.16736383,4613.9,4613.5,0.001]
[1755236910903,8.58850083,4613.9,4613.5,0.001]
[1755236911134,10.0097935,4613.9,4613.5,0.001]
[1755236911328,13.4017935,4613.9,4613.5,0.001]
[1755236911504,13.40154742,4613.9,4613.5,0.001]
[1755236913046,13.40254742,4613.9,4613.5,0.001]
[1755236914453,13.40231511,4613.9,4613.5,0.001]
[1755236914756,13.02696283,4613.9,4613.5,0.001]
[1755236914959,13.48917702,4613.9,4613.5,0.001]
[1755236915261,13.02696283,4613.9,4613.5,0.001]
[1755236915564,8.78336283,4613.9,4613.5,0.001]
[1755236915740,12.06836283,4613.9,4613.5,0.001]
[1755236917264,12.55726283,4613.9,4613.5,0.001]
[1755236917944,5.64722583,4613.9,4613.5,0.001]
[1755236918459,12.06836283,4613.9,4613.5,0.001]
[1755236919769,8.78336283,4613.9,4613.5,0.001]
[1755236919980,12.06836283,4613.9,4613.8,0.4491]
[1755236920464,12.2337581,4613.9,4613.8,0.4491]
[1755236921857,12.2327581,4613.9,4613.8,0.4491]
[1755236922059,5.8116211,4613.9,4613.8,0.4491]
[1755236922268,5.7247591,4613.9,4613.8,0.4491]
[1755236922580,12.1458961,4613.9,4613.8,0.4491]
[1755236924135,12.1458961,4613.9,4613.8,0.001]
[1755236926243,13.1044961,4613.9,4613.8,0.001]
[1755236926448,12.6347961,4613.9,4613.8,0.001]
[1755236927159,12.7216431,4613.9,4613.8,0.001]
[1755236928169,6.3005061,4613.9,4613.8,0.001]
[1755236928669,12.7216431,4613.9,4613.8,0.001]
[1755236929152,13.1913431,4613.9,4613.8,0.001]
[1755236929662,12.7216431,4613.9,4613.8,0.001]
[1755236929858,12.2327431,4613.9,4613.8,0.001]
[1755236930565,8.9477431,4613.9,4613.8,0.001]
[1755236930736,12.1458961,4613.9,4613.8,0.001]
[1755236930943,12.1458961,4613.9,4613.8,0.4491]
[1755236931577,12.1478961,4613.9,4613.8,0.4491]
[1755236932069,12.1478961,4613.9,4613.8,0.001]
[1755236932276,12.5969961,4613.9,4613.8,0.001]
[1755236934075,13.0685961,4613.9,4613.8,0.001]
[1755236934272,6.6474591,4613.9,4613.8,0.001]
[1755236934571,13.0685961,4613.9,4613.8,0.001]
[1755236937464,12.5969961,4613.9,4613.8,0.001]
[1755236937969,6.1768591,4613.9,4613.8,0.4466]
[1755236942647,4.00949527,4613.9,4613.8,0.4466]
[1755236943078,2.8918591,4613.9,4613.8,0.4466]
[1755236943379,6.1758591,4613.9,4613.8,0.4466]
[1755236944884,6.01046383,4613.9,4613.8,0.4466]
[1755236947272,6.17657355,4613.9,4613.8,0.4466]
[1755236948284,2.89257355,4613.9,4613.8,0.4466]
[1755236948492,6.17657355,4613.9,4613.8,0.4466]
[1755236949393,0.5591,4613.9,4613.8,0.001]
[1755236949596,3.8431,4613.9,4613.8,0.4466]
[1755236950485,0.002,4613.9,4613.8,1.18880469]
[1755236950696,0.002,4613.9,4613.8,3.3562155]
[1755236950990,0.002,4613.9,4613.8,3.4642155]
[1755236951189,3.286,4613.9,4613.8,3.4642155]
[1755236952893,0.002,4613.9,4613.8,3.4642155]
[1755236953207,0.002,4613.9,4613.8,3.0272155]
[1755236953367,0.002,4613.9,4613.8,3.4642155]
[1755236961913,0.002,4613.9,4613.8,3.0272155]
[1755236971461,0.002,4613.9,4613.8,2.5816155]
[1755236972354,0.002,4613.9,4613.8,3.0538155]
[1755236974963,0.002,4613.9,4613.8,2.5816155]
[1755236976972,0.002,4613.9,4613.8,3.0538155]
[1755236977875,0.002,4613.9,4613.8,2.5816155]
[1755236978888,0.002,4613.9,4613.8,3.0538155]
[1755236979381,0.002,4613.9,4613.8,2.5816155]
[1755236982361,0.002,4613.9,4613.8,3.0538155]
[1755236985278,0.002,4613.9,4613.8,2.5816155]
[1755236989981,0.002,4613.9,4613.8,3.07000832]
[1755236990883,0.002,4613.9,4613.8,3.50700832]
[1755236992382,0.002,4613.9,4613.8,3.4908155]
[1755236996795,0.002,4613.9,4613.8,7.7408155]
[1755236999302,0.002,4613.9,4613.8,7.3038155]
[1755237012728,0.002,4613.9,4613.8,18.57731936]
[1755237014116,0.002,4613.9,4613.8,14.32731936]
[1755237014298,0.002,4613.9,4613.8,14.31951936]
[1755237015023,0.1,4614.0,4613.9,2.16736383]
[1755237015195,0.1,4614.0,4613.9,7.65819253]
[1755237015397,0.1,4614.0,4613.9,8.10640089]
[1755237015817,0.002,4614.4,4614.3,2.16717595]
[1755237016026,0.002,4614.4,4614.3,5.46436289]
[1755237016327,0.002,4614.4,4614.3,7.49312717]
[1755237016989,0.002,4614.4,4614.3,5.55617595]
[1755237020340,0.002,4614.4,4614.3,6.02057595]
[1755237020507,0.002,4614.4,4614.3,5.55617595]
[1755237023738,1e-08,4614.4,4614.3,6.00057595]
[1755237025142,0.002,4615.3,4615.2,2.16675333]
[1755237025309,1e-08,4615.4,4615.3,2.16670638]
[1755237025512,1e-08,4615.4,4615.3,2.61110638]
[1755237025722,1e-08,4615.4,4615.3,5.61110638]
[1755237025938,1e-08,4615.4,4615.3,7.81557042]
[1755237026436,0.4754,4616.3,4615.8,2.16647168]
[1755237026644,0.4754,4616.3,4615.8,5.46264103]
[1755237026839,0.4754,4616.3,4615.8,5.99887168]
[1755237027043,0.4754,4616.3,4615.8,7.73232186]
[1755237027810,1e-08,4615.9,4615.8,7.28792186]
[1755237028039,1e-08,4615.9,4615.8,7.73232186]
[1755237028244,1e-08,4616.1,4616.0,2.16637781]
[1755237028547,1e-08,4616.1,4616.0,5.44637781]
[1755237028843,0.086761,4618.4,4616.1,5.16633088]
[1755237029046,0.4754,4616.8,4616.3,0.108]
[1755237029222,0.921,4616.8,4616.3,0.108]
[1755237029423,0.108,4618.5,4616.3,2.27423702]
[1755237029624,0.4754,4617.5,4617.4,2.16572096]
[1755237029944,0.921,4617.5,4617.4,5.44572096]
[1755237030126,0.921,4617.5,4617.4,5.55372096]
[1755237031528,0.921,4617.5,4617.4,2.27372096]
[1755237032928,2.16526181,4618.4,4617.4,2.27372096]
[1755237033244,0.921,4618.3,4618.2,2.1653458]
[1755237033925,0.4754,4618.3,4618.2,2.1653458]
[1755237034126,0.4456,4618.7,4618.6,2.16515827]
[1755237034551,0.4456,4618.7,4618.6,2.27315827]
[1755237034753,0.921,4618.7,4618.6,2.27315827]
[1755237035162,0.921,4618.7,4618.6,0.108]
[1755237036070,0.921,4618.7,4617.0,3.0]
[1755237036071,0.921,4618.7,4618.0,3.278]
[1755237036277,0.02706389,4618.7,4618.4,0.108]
[1755237036476,0.921,4618.6,4618.4,0.108]
[1755237036787,0.921,4618.5,4618.4,0.108]
[1755237042880,0.921,4618.5,4617.9,2.16548403]
[1755237043187,0.94806565,4618.4,4617.9,0.108]
[1755237043353,0.921,4618.4,4616.5,2.16612904]
[1755237043554,0.02706623,4618.3,4617.6,0.108]
[1755237043876,0.94806623,4618.3,4617.6,0.108]
[1755237044079,0.921,4618.2,4616.0,3.15621733]
[1755237044267,2.16566734,4617.6,4617.3,0.108]
[1755237044469,2.16577536,4617.3,4615.7,2.16647624]
[1755237044673,0.94807268,4617.2,4616.7,0.108]
[1755237045195,0.921,4617.1,4616.7,0.108]
[1755237045361,0.02707385,4617.0,4616.7,0.108]
[1755237045774,0.921,4616.9,4616.7,0.108]
[1755237046064,0.921,4616.8,4616.7,0.108]
[1755237046272,0.921,4616.8,4615.7,3.277]
[1755237046481,0.921,4616.7,4616.2,0.108]
[1755237046678,3.43614367,4617.2,4616.6,2.16606589]
[1755237046909,0.4754,4617.0,4616.7,2.1660107]
[1755237047089,0.4754,4617.0,4616.9,0.108]
[1755237050723,0.921,4617.0,4616.9,0.108]
[1755237052720,0.921,4617.0,4616.3,2.16720339]
[1755237052877,0.96357444,4616.9,4616.7,0.108]